Cogmind - Beta 10.2 *** ADVENTURER MODE // 2021.06.19 @ 19:55:24 Player: DUMBBITCHINDYSTOPIA Result: Self-destructed Performance ------------- Evolutions (2) 1000 Regions Visited (4) 800 Robots Destroyed (76) 380 Value Destroyed (1893) 1893 Prototype IDs (9) 180 Alien Tech Used (0) 0 Bonus (4) 4 TOTAL SCORE: 4257 Bonus ------- High Alert Combat Kills 4 Cogmind --------- Core Integrity 482/550 Matter 300/300 Energy 280/280 System Corruption 0% Temperature Cool (0) Movement Treading (180) Ox1 Location -8/Materials Parts ------- > --- POWER (1) -------- Heavy Ion Engine > --- PROPULSION (3) --- Light Treads Light Treads Light Treads > --- UTILITY (5) ------ Improved Heat Sink Large Storage Unit High-capacity Storage Unit Visual Processing Unit Targeting Computer > --- WEAPON (2) ------- Improved Medium Laser Improved Medium Laser > --- INVENTORY (18) --- Heavy Ion Engine Deuterium Engine Light Treads Light Treads Improved Weapon Shielding Decoy Drone Bay (16/16) Medium Laser Improved Medium Laser Advanced Beam Cannon Advanced Beam Cannon Rocket Launcher Peak State ------------ > --- POWER ------------ Light Ion Engine > --- PROPULSION ------- Light Treads Light Treads > --- UTILITY ---------- Improved Heat Sink Large Storage Unit Decoy Drone Bay > --- WEAPON ----------- Medium Laser Particle Gun > --- INVENTORY -------- Ion Engine Combat Airjet Targeting Computer ECM Suite Medium Laser Medium Laser Rocket Launcher [Rating: 25] Favorites ----------- Power Ion Engine Engine Ion Engine Propulsion Light Treads Treads Light Treads Hover Unit Combat Airjet Utility Improved Heat Sink Device Improved Heat Sink Storage Large Storage Unit Processor Targeting Computer Protection Light Armor Plating Weapon Medium Laser Energy Gun Medium Laser Energy Cannon Advanced Beam Cannon Ballistic Gun Light Assault Rifle Launcher Rocket Launcher Build | -11 -10 -10 -9 -8 ------- Run | Scr Mat Min Mat Mat Slots Evolved 4 | . . . 2 2 Power . | . . . . . Propulsion 1 | . . . . 1 Utility 3 | . . . 2 1 Weapon . | . . . . . Parts Attached 66 | 7 8 11 25 15 Power 5 | 1 . 2 2 . Engine 5 | 1 . 2 2 . Core . | . . . . . Reactor . | . . . . . Propulsion 21 | 2 3 5 5 6 Treads 20 | 2 3 4 5 6 Leg . | . . . . . Wheel . | . . . . . Hover 1 | . . 1 . . Flight . | . . . . . Utility 13 | 2 1 1 7 2 Device 4 | . . 1 3 . Storage 5 | 2 1 . 1 1 Processor 2 | . . . 2 . Hackware . | . . . . . Protection 2 | . . . 1 1 Artifact . | . . . . . Weapon 27 | 2 4 3 11 7 Energy Gun 19 | 1 4 3 7 4 Energy Cannon 4 | . . . 2 2 Ballistic Gun 2 | 1 . . 1 . Ballistic Cannon . | . . . . . Launcher 2 | . . . 1 1 Special Weapon . | . . . . . Impact Weapon . | . . . . . Slashing Weapon . | . . . . . Piercing Weapon . | . . . . . Special Melee Weapon . | . . . . . Unidentified Prototypes 6 | . . . 6 . Parts Lost 5 | . . 2 3 . Power 1 | . . . 1 . Propulsion 1 | . . 1 . . Utility 1 | . . . 1 . Weapon 2 | . . 1 1 . Highest Loss Streak 2 | . . 1 2 . Average Slot Usage (%) 98 | . 99 98 98 98 Engine 12 | . 14 14 10 9 Treads 24 | . 27 25 21 26 Device 8 | . . 13 11 9 Storage 17 | . 28 14 11 16 Processor 8 | . . . 18 18 Protection 1 | . . . 2 1 Energy Gun 19 | . 24 28 12 9 Energy Cannon 3 | . . . 6 8 Ballistic Gun 1 | . 3 . 2 . Naked Turns . | . . . . . Heaviest Build 64 | 16 29 29 48 64 Greatest Support 60 | 40 40 40 40 60 Greatest Overweight (x) 1 | . . 1 1 1 Average Overweight (x) . | . . . . . Largest Inventory Capacity 18 | 8 12 12 12 18 Average Capacity 10 | 6 8 10 11 16 Most Carried 12 | 2 10 11 11 12 Average Carried 8 | 1 6 8 9 10 Final Capacity 18 | 8 12 10 12 18 Final Carried 12 | 2 10 9 11 12 Class Distribution -------------------- 82% | Mutant 17% | Scavenger-Mutant Dominant Class ---------------- Mutant | -10/Materials Mutant | -10/Mines Mutant | -9/Materials Scavenger-Mutant | -8/Materials Resources | -11 -10 -10 -9 -8 ----------- Run | Scr Mat Min Mat Mat Matter Collected 1001 | 221 146 110 352 172 Remotely . | . . . . . Salvage Created 2859 | 90 501 194 1526 548 Parts 165 | 3 33 4 87 38 Haulers Intercepted 7 | . 2 . 5 . Recyclers Shooed . | . . . . . Parts Field Recycled . | . . . . . Retrieved Matter . | . . . . . Parts Self-Destructed . | . . . . . Prevented . | . . . . . Kills | -11 -10 -10 -9 -8 ------- Run | Scr Mat Min Mat Mat Combat Hostiles Destroyed 58 | . 12 9 26 11 Guns 44 | . 11 8 21 4 Cannons 10 | . . . 3 7 AOE 2 | . . . 2 . Classes Destroyed 14 | 2 5 2 3 2 Worker 1 | . . . 1 . Builder 1 | . 1 . . . Tunneler 1 | 1 . . . . Hauler 7 | . 2 . 5 . Recycler 3 | 1 . . 2 . Operator 1 | . . . . 1 Watcher 10 | . 3 . 5 2 Swarmer 15 | . 6 . 6 3 Grunt 19 | . 6 2 11 . Brawler 1 | . . . 1 . Sentry 15 | . . . 8 7 Demolisher 1 | . . 1 . . Hunter 1 | . . . . 1 Assembled 6 | . . 6 . . Best Kill Streak 9 | 2 4 2 7 9 Combat Bots Only 8 | . 3 2 5 8 Max Kills in Single Turn 3 | 1 2 1 3 1 Gunslinging 1 | . . . 1 . Exploded 2 | . . . 2 . Melee . | . . . . . Uniques/NPCs Destroyed . | . . . . . Combat | -11 -10 -10 -9 -8 -------- Run | Scr Mat Min Mat Mat Damage Taken 1817 | . 312 460 609 436 Core 285 | . 23 84 110 68 Absorbed by Shields . | . . . . . Core Remaining (%) 76 | 100 . 57 72 . Volleys Fired 179 | 4 39 29 73 34 Largest 2 | 2 2 2 2 2 Hottest 124 | 70 100 115 124 124 Shots Fired 350 | 8 78 58 140 66 Gun 305 | 8 78 58 124 37 Cannon 42 | . . . 15 27 Launcher 3 | . . . 1 2 Special . | . . . . . Kinetic 52 | 4 13 . 35 . Thermal 295 | 4 65 58 104 64 Explosive 3 | . . . 1 2 Electromagnetic . | . . . . . Robot Hit Streak 42 | 5 17 19 39 42 Robot Miss Streak 4 | 1 2 4 2 1 Penetration Max . | . . . . . Secondary Targets 6 | . 3 . 3 . Max Gunslinging Chain 1 | . 1 . 1 . Shots Hit Robots 279 | 6 60 41 117 55 Core Hits 116 | 3 26 16 52 19 Critical Hits 6 | 1 . . . 5 Critical Kills 1 | . . . . 1 Critical Parts Destroyed 4 | 1 . . . 3 Melee Attacks . | . . . . . Impact . | . . . . . Slashing . | . . . . . Piercing . | . . . . . Sneak Attacks . | . . . . . Combat Hostiles . | . . . . . Follow-up Attacks . | . . . . . Damage Inflicted 4417 | 71 732 493 2104 1017 Guns 3606 | 71 732 486 1769 548 Cannons 646 | . . . 177 469 Explosions 158 | . . . 158 . Melee . | . . . . . Ramming 7 | . . 7 . . Kinetic 536 | 19 84 . 433 . Thermal 3716 | 52 648 486 1513 1017 Explosive 158 | . . . 158 . Electromagnetic . | . . . . . Impact . | . . . . . Slashing . | . . . . . Piercing . | . . . . . Highest Corruption . | . . . . . Average Corruption . | . . . . . Corruption Purged . | . . . . . Overload Shots . | . . . . . Overflow Damage 27 | . . . . 27 Projectiles 27 | . . . . 27 Explosions . | . . . . . Melee . | . . . . . Knockbacks . | . . . . . Impact . | . . . . . Kinetic . | . . . . . Secondary . | . . . . . Self-Inflicted Damage 24 | . . . . 24 Shots 1 | . . . . 1 Rammed 1 | . . 1 . . Targets Rammed 1 | . . 1 . . Kicked . | . . . . . Crushed . | . . . . . Highest Temperature 310 | 60 310 252 207 96 Average Temperature 71 | 30 108 63 54 31 Received Heat Transfer 701 | . 150 155 297 99 Effects 2 | . 2 . . . Interference 2 | . 2 . . . Siege Activations . | . . . . . Robots Corrupted . | . . . . . Combat Hostiles . | . . . . . Parts Fried . | . . . . . Impact Corruptions . | . . . . . Robots Melted 2 | . 1 1 . . Combat Hostiles 2 | . 1 1 . . Parts Melted 21 | 1 3 1 11 5 Heat Transferred 8658 | 148 1887 1332 3367 1924 Parts Sabotaged . | . . . . . Parts Stolen . | . . . . . Parts Stripped . | . . . . . Power Chain Reactions . | . . . . . Missiles Intercepted . | . . . . . Alert | -11 -10 -10 -9 -8 ------- Run | Scr Mat Min Mat Mat Peak Influence 440 | 10 196 110 440 285 Initial 61 | . 5 . . 61 Average 90 | 4 71 31 151 104 Maximum Alert Level 2 | . . . 2 1 Low Security (%) 92 | 100 100 100 78 92 Level 1 4 | . . . 10 7 Level 2 3 | . . . 10 . Level 3 . | . . . . . Level 4 . | . . . . . Level 5 . | . . . . . High Security . | . . . . . Max Security . | . . . . . Squads Dispatched 5 | . 1 . 2 2 Investigation 2 | . 1 . 1 . Extermination . | . . . . . Reinforcement 3 | . . . 1 2 Assault . | . . . . . Garrison . | . . . . . Intercept . | . . . . . Construction Impeded . | . . . . . Haulers Reinforced . | . . . . . Stealth | -11 -10 -10 -9 -8 --------- Run | Scr Mat Min Mat Mat Distress Signals 4 | . . . 3 1 Communications Jammed . | . . . . . Distress Signals . | . . . . . Times Spotted 76 | . 17 9 34 16 Peak Tracking Total 5 | . 4 2 5 5 Tactical Retreats . | . . . . . Traps | -11 -10 -10 -9 -8 ------- Run | Scr Mat Min Mat Mat Traps Triggered 3 | . 1 . 1 1 Indirectly . | . . . . . Trap Hack Attempts . | . . . . . Triggered . | . . . . . Disarmed . | . . . . . Reprogrammed . | . . . . . Reused . | . . . . . Traps Extracted . | . . . . . Installed . | . . . . . Triggered . | . . . . . Machines | -11 -10 -10 -9 -8 ---------- Run | Scr Mat Min Mat Mat Machines Disabled . | . . . . . Max in Single Turn . | . . . . . Machines Sabotaged . | . . . . . Garrisons Compromised . | . . . . . Overloaded Fab Kills . | . . . . . Fab Network Shutdowns . | . . . . . Hacking | -11 -10 -10 -9 -8 --------- Run | Scr Mat Min Mat Mat Machines Accessed 21 | . 7 1 9 4 Terminals 15 | . 6 . 6 3 Fabricators . | . . . . . Repair Stations 4 | . 1 . 2 1 Recycling Units . | . . . . . Scanalyzers 1 | . . . 1 . Garrison Access . | . . . . . Total Hacks 93 | . 29 1 42 21 Successful 69 | . 21 1 33 14 Failed 23 | . 7 . 9 7 Catastrophic 2 | . . . . 2 Database Lockouts 1 | . 1 . . . Manual 34 | . 11 . 12 11 Terminals 62 | . 23 . 24 15 Fabricators . | . . . . . Repair Stations 23 | . 6 . 11 6 Recycling Units . | . . . . . Scanalyzers 7 | . . . 7 . Garrison Access . | . . . . . Terminal Hacks 33 | . 12 1 12 8 Robot Analysis 7 | . 3 . 2 2 Prototype ID Bank 3 | . 1 . 2 . Open Door 1 | . . 1 . . Level Access Points 1 | . . . 1 . Branch Access Points 1 | . . . 1 . Terminal Index 2 | . 1 . . 1 Scanalyzer Index 1 | . . . . 1 Alert Level 6 | . 2 . 2 2 Unreport Threat 1 | . . . 1 . Locate Traps 2 | . 1 . . 1 Transport Status 1 | . . . 1 . Hauler Manifests 2 | . 1 . . 1 Registered Components 2 | . 1 . 1 . Zone Layout 3 | . 2 . 1 . Fabricator Hacks . | . . . . . Repair Station Hacks 21 | . 6 . 10 5 Scan Component 11 | . 3 . 5 3 Repair 10 | . 3 . 5 2 Recycling Unit Hacks . | . . . . . Scanalyzer 7 | . . . 7 . Insert Component 4 | . . . 4 . Analyze 3 | . . . 3 . Garrison Access Hacks . | . . . . . Unauthorized Hacks 8 | . 3 . 4 1 Terminals 8 | . 3 . 4 1 Track 1 | . . . 1 . Botnet 7 | . 3 . 3 1 Fabricators . | . . . . . Repair Stations . | . . . . . Recycling Units . | . . . . . Scanalyzers . | . . . . . Garrison Access . | . . . . . Data Cores Recovered . | . . . . . Used . | . . . . . Hacking Detections 16 | . 6 . 6 4 Full Trace Events . | . . . . . Feedback Events . | . . . . . Feedback Blocked . | . . . . . Robot Schematics Acquired . | . . . . . Robots Built . | . . . . . Matter . | . . . . . Time . | . . . . . Total Robot Build Rating . | . . . . . Part Schematics Acquired 3 | . . . 3 . Parts Built . | . . . . . Matter . | . . . . . Time . | . . . . . Total Part Build Rating . | . . . . . Parts Repaired 10 | . 3 . 5 2 Time 335 | . 78 . 205 52 Parts Recycled . | . . . . . Recycled Matter . | . . . . . Retrieved Matter . | . . . . . Retrieved Components . | . . . . . Parts Scanalyzed 3 | . . . 3 . Part Schematics Acquired 3 | . . . 3 . Parts Damaged 1 | . . . 1 . Bothacking | -11 -10 -10 -9 -8 ------------ Run | Scr Mat Min Mat Mat Used RIF Installer . | . . . . . Robots Hacked . | . . . . . Non-combat . | . . . . . Combat . | . . . . . Robot Hacks Applied . | . . . . . Relay Couplers Released . | . . . . . Robots Rewired . | . . . . . Allies Hacked . | . . . . . Hacks Repelled . | . . . . . Allies | -11 -10 -10 -9 -8 -------- Run | Scr Mat Min Mat Mat Total Allies . | . . . . . Largest Group . | . . . . . Highest-Rated Group . | . . . . . Highest-Rated Ally . | . . . . . Total Orders . | . . . . . Ally Attacks . | . . . . . Total Damage . | . . . . . Kills . | . . . . . Allies Corrupted . | . . . . . Allies Melted . | . . . . . Intel | -11 -10 -10 -9 -8 ------- Run | Scr Mat Min Mat Mat Robot Analysis Total 7 | . 3 . 2 2 Derelict Logs Recovered 1 | . . 1 . . Drone Launches . | . . . . . Drone Recoveries . | . . . . . Exploration | -11 -10 -10 -9 -8 ------------- Run | Scr Mat Min Mat Mat Turns Passed 4819 | 119 1249 1195 1583 673 Spaces Moved 2221 | 61 643 617 634 266 Core 3 | 3 . . . . Treads 2176 | 58 643 575 634 266 Legs . | . . . . . Wheels . | . . . . . Hover 42 | . . 42 . . Flight . | . . . . . Fastest Speed 50 | 50 160 150 160 160 Average Speed 164 | 154 160 159 170 173 Slowest Speed 180 | 160 160 180 180 180 Overloaded Moves . | . . . . . Propulsion Burnouts . | . . . . . Robots Hopped . | . . . . . Cave-ins Triggered . | . . . . . Exploration Rate (%) 60 | 5 90 97 72 37 Regions Visited 4 Branch Regions 1 Pre-discovered Areas 2 | . . 2 . . Known Exits Taken 1 | . . . 1 . Unknown Exits Taken 3 | 1 1 1 . . Scrap Searched 1 | . . 1 . . Spaces Dug 25 | . . . . 25 Terrain Destroyed 30 | . . . 5 25 Melee . | . . . . . Projectile . | . . . . . AOE 30 | . . . 5 25 Terrain Rammed . | . . . . . Walls Destroyed . | . . . . . Machines Disabled . | . . . . . Actions | -11 -10 -10 -9 -8 --------- Run | Scr Mat Min Mat Mat Total 3027 | 75 787 768 993 404 Wait 500 | 2 83 97 232 86 Move 2217 | 60 642 616 633 266 Hop . | . . . . . Pick Up 33 | 2 9 5 15 2 Fast Attach 23 | 7 3 3 5 5 Attach 8 | . . 1 5 2 Detach 1 | . . . 1 . Swap 35 | . 5 7 15 8 Drop 30 | . 6 9 14 1 Fire 179 | 4 39 29 73 34 Melee . | . . . . . Ram . | . . . . . Kick . | . . . . . Crush 1 | . . 1 . . Escape Stasis . | . . . . . Rewire . | . . . . . Trap . | . . . . . Miscellaneous . | . . . . . Route ------- -11/Scrapyard -10/Materials (discovered 4 exits: *Mat x3 / *Min) -10/Mines (discovered 2 exits: *Mat x2) -9/Materials (discovered 5 exits: *Mat x3 / *Min x2) -8/Materials (discovered 1 exit: [*Fac]) History --------- Turn | Location | Event 4 | -11/Scrapyard | Discovered new exit (range 16) 120 | -11/Scrapyard | Entered Materials 279 | -10/Materials | Discovered new exit (range 7) 311 | -10/Materials | Build established: Mutant 328 | -10/Materials | Discovered new exit (range 10) 460 | -10/Materials | Central database locked down 470 | -10/Materials | Discovered new exit (range 16) 763 | -10/Materials | Repaired Lgt. Treads 790 | -10/Materials | Repaired Lgt. Treads 818 | -10/Materials | Repaired Lgt. Treads 1128 | -10/Materials | Discovered new exit (range 16) 1369 | -10/Materials | Entered Mines 1448 | -10/Mines | Assembled infested the area 1479 | -10/Mines | Learned location of Mines (-8) 1497 | -10/Mines | Discovered new exit (range 3) 1738 | -10/Mines | Received a Rocket Launcher from a helpful Derelict 2269 | -10/Mines | Found the Drone Emporium 2275 | -10/Mines | Found Prototype Device 2335 | -10/Mines | Learned location of Storage (-8) 2528 | -10/Mines | Discovered new exit (range 8) 2564 | -10/Mines | Entered Materials 2564 | -9/Materials | Evolved 2 slots: Utility x2 2564 | -9/Materials | Identified Decoy Drone Bay 2963 | -9/Materials | Discovered new exit (range 13) 2966 | -9/Materials | Identified exit to Materials 3227 | -9/Materials | Discovered new exit (range 16) 3587 | -9/Materials | Repaired Imp. Heat Sink 3615 | -9/Materials | Repaired Lgt. Treads 3641 | -9/Materials | Repaired Lgt. Treads 3707 | -9/Materials | Identified exit to Mines 3782 | -9/Materials | Repaired Imp. Medium Laser 3957 | -9/Materials | Repaired Broken Adv. Beam Cannon 4147 | -9/Materials | Entered another Materials area 4147 | -8/Materials | Evolved 2 slots: Propulsion x1, Utility x1 4452 | -8/Materials | Discovered new exit (range 16) 4468 | -8/Materials | Build established: Scavenger-Mutant 4616 | -8/Materials | Repaired Lgt. Treads 4644 | -8/Materials | Repaired Lgt. Treads 4820 | -8/Materials | Self-destructed Last Messages --------------- 04764_ S-10 Pest destroyed. 04770_ S-10 Pest suffers critical hit. 04770_ Destroyed Lgt. Ion Engine. 04772_ K-01 Serf collects debris. 04773_ S-10 Pest destroyed. 04776_ K-01 Serf collects debris. 04785_ K-01 Serf cleans the Nuclear Reactor. 04787_ Destroyed Lgt. Ion Engine. 04789_ K-01 Serf collects debris. 04790_ S-10 Pest destroyed. 04792_ K-01 Serf collects debris. 04794_ Acquired 10 matter. 04796_ K-01 Serf collects debris. 04800_ Slug penetrates Wall. 04802_ K-01 Serf collects debris. 04810_ Lgt. Nuclear Core melted. 04810_ Gauss Rifle melted. 04810_ H-55 Commando destroyed. 04810_ K-01 Serf collects debris. 04820_ Connecting with Scanalyzer... Map ----- +----------------------------------------------------+ | =/ + T !#???????????????????????????????????? | | # #???????????????????????????????????? | | + = #???????????????????????????????????? | | # #???????????????????????????????????? | | = ###########???????????????????????????????????? | | %! #????????????????????????????????????????????? | | * #????????????????????????????????????????????? | | %= #????????????????????????????????????????????? | | [ #????????????????????????????????????????????? | | #????????????????????????????????????????????? | | #########??????##########+??????????????????????? | | ## #?????? # ???????????????????????? | | ## #?????""" # ????????????????????????? | | ## #??????"" # ?????????????????????????? | | ## #??????"" + #???###???????????????????? | | ## #???????" # #??? ???????????????????? | | ## ?????????? # ^ #??? ?????????????????? | | ###+############## ^ ###?""" "?????????????????? | | *%! # # """ ""????????????????? | | !== # """ ""????????????????? | | # """ ""????????????????? | | ###+######+###### # # """ """ #?????????????? | | ## ?# ^ #?## #?????????????? | | ## #! """ #??# ###########?????????????? | | ## # R" #??####### !! ] #?????????????? | | ## #^ """ #?????#"S@ !! !! #?? ??????????? | | ## #^^ ^ #?????#""" [!=[%* # #?????????? | | ## # =#?????# "" %[k""" +% +?????????? | | ################?????#### !=[""" # #?????????? | | #???????????????????????# %%*""" #??##?????????? | | #???????????????????????# [** k% #?????????????? | | #???????????????????????# | [% #?????????????? | | ##???????????????????????########+##?????????????? | | ????????????????????????????????? #??????????????? | | ??????????????????????????????????#??????????????? | | ?????????????????????????????????????????????????? | | ?????????????????????????????????????????????????? | | ?????????????????????????????????????????????????? | | ?????????????????????????????????????????????????? | | ?????????????????????????????????????????????????? | | ?????????????????????????????????????????????????? | | ?????????????????????????????????????????????????? | | ?????????????????????????????????????????????????? | | ?????????????????????????????????????????????????? | | ?????????????????????????????????????????????????? | | ?????????????????????????????????????????????????? | | ?????????????????????????????????????????????????? | | ?????????????????????????????????????????????????? | | ?????????????????????????????????????????????????? | | ?????????????????????????????????????????????????? | +----------------------------------------------------+ Best States ------------- Heat Dissipation 45 Energy Generation 14 Energy Capacity 280 Matter Stores 300 Matter Capacity 300 Sight Range 18 Terrain Scan Density 10 ECM Strength 1 Armor Coverage 150 Resistance: KI 20 Resistance: TH 20 Resistance: EX 20 Resistance: EM 20 Resistance: I 20 Resistance: S 20 Resistance: P 20 Evasion (%) 40 Targeting Accuracy 5 Recoil Reduction 3 Offensive Hacking 10 Item Schematics ----------------- Lrg. Storage Unit | -9/Materials | Scanalyzed Adv. Beam Cannon | -9/Materials | Scanalyzed Hvy. Ion Engine | -9/Materials | Scanalyzed Robot Schematics ------------------ None Fabricated ------------ Nothing Alien Tech Used ----------------- None Achievements -------------- None Challenges ------------ None Game ------ Seed AlloyTiamatLoader Manual? 0 Play Time 00:41:30 Cumulative 35.9 hours Start 2021.06.19 @ 18:20:10 End 2021.06.19 @ 19:55:24 Sessions 1 Manual Loads 0 Difficulty Adventurer Special Mode None Game No. 45 Rogue 3 Adventurer 42 Explorer 0 Win Type - Total 0 Types 0/0/0/0/0/0/0/0/0 Lore% 36 Gallery% 44 Achievement% 38 Wizard Run 0 Options --------- ASCII 0 Keyboard 0 Movement Arrows Keybinds 0 Fullscreen 1 Font 16/SmallcapsGlow Map View 75x55 Tactical HUD 1 Map Filters NONE Filters NONE Steam 0 RUN: 967c15d2-21ef-49a2-a73f-b3c8ab040757